bitfinex-derivatives/quotes_SOLF0:USTF0_20250311
["timestamp","ask_amount","ask_price","bid_price","bid_amount"]
[1741707124987,9.103e-05,123.46,123.43,35.56197508]
[1741707125182,12.4804,123.52,123.43,35.56197508]
[1741707125681,278.43775248,123.61,123.45,35.50102485]
[1741707125984,35.50102485,123.58,123.46,52.88]
[1741707126484,0.05270231,123.54,123.51,0.05739278]
[1741707126679,8.0977,123.53,123.51,0.05739278]
[1741707127079,0.05270231,123.54,123.51,0.05739278]
[1741707128188,0.05270231,123.54,123.51,52.89739278]
[1741707129595,0.05270231,123.54,123.51,0.05739278]
[1741707130394,0.05270231,123.54,123.53,8.0974]
[1741707130592,0.05270231,123.54,123.53,60.8974]
[1741707131099,3.9903,123.59,123.53,88.30102485]
[1741707131596,35.50102485,123.64,123.53,88.30102485]
[1741707131791,35.50102485,123.64,123.53,52.8]
[1741707131991,8.0946,123.58,123.57,0.05638541]
[1741707132193,0.053568,123.6,123.57,0.05638541]
[1741707133004,0.053568,123.6,123.59,8.0935]
[1741707133297,8.1596,123.67,123.59,35.50102485]
[1741707133502,8.0909,123.63,123.58,52.78]
[1741707133984,35.50102485,123.65,123.58,52.78]
[1741707134185,4.2697,123.64,123.58,52.78]
[1741707134393,0.05399104,123.63,123.6,0.05401836]
[1741707134591,8.0926,123.61,123.6,0.05401836]
[1741707134792,0.05399104,123.63,123.6,0.05401836]
[1741707135292,35.50102485,123.61,123.52,319.96]
[1741707135494,3.961,123.6,123.52,319.96]
[1741707135698,4.2697,123.64,123.55,35.50102485]
[1741707135995,35.50102485,123.67,123.55,35.50102485]
[1741707136191,4.0112,123.67,123.57,35.50102485]
[1741707136394,9.458e-05,123.61,123.59,35.50102485]
[1741707136900,4.1137,123.68,123.59,37.63752485]
[1741707137393,4.1137,123.68,123.6,8.0926]
[1741707137695,0.06201561,123.65,123.62,0.06238423]
[1741707137894,0.06201561,123.65,123.63,52.72]
[1741707138295,0.06201561,123.65,123.64,8.0902]
[1741707138490,267.06,123.83,123.63,90.69545364]
[1741707138696,8.1696,123.77,123.68,35.50102485]
[1741707138995,8.1696,123.77,123.69,52.7]
[1741707139299,8.1696,123.77,123.72,8.0849]
[1741707139595,0.05127048,123.76,123.73,0.06112271]
[1741707139797,8.0837,123.74,123.73,0.06112271]
[1741707140301,37.92102485,123.74,123.65,52.68]
[1741707140502,35.50102485,123.74,123.65,8.0891]
[1741707140795,35.50102485,123.72,123.61,355.24102485]
[1741707140993,35.50102485,123.72,123.61,52.68]
[1741707140994,35.50102485,123.68,123.61,52.68]
[1741707141194,8.1395,123.67,123.61,52.68]
[1741707141491,8.14513685,123.66,123.63,0.05978729]
[1741707141696,0.05583685,123.66,123.63,0.05978729]
[1741707142093,8.09,123.65,123.63,0.05978729]
[1741707142289,0.05583685,123.66,123.63,0.05978729]
[1741707142493,35.5568617,123.66,123.58,52.66]
[1741707142696,35.5568617,123.66,123.55,52.64]
[1741707142697,35.50102485,123.64,123.55,52.64]
[1741707142905,35.50102485,123.66,123.55,52.64]
[1741707143492,8.0911,123.63,123.55,52.64]
[1741707143801,0.05653453,123.62,123.59,0.05571517]
[1741707144298,71.0020497,123.6,123.44,191.0]
[1741707144492,35.50102485,123.56,123.45,2.6447]
[1741707144689,8.0971,123.54,123.47,8.1009]
[1741707144892,35.50102485,123.56,123.47,8.1009]
[1741707145097,35.50102485,123.54,123.45,55.1389]
[1741707145503,0.05753472,123.51,123.48,0.05652303]
[1741707145691,8.1623,123.59,123.48,0.05652303]
[1741707146001,8.1623,123.59,123.5,35.50102485]
[1741707146196,8.1623,123.59,123.51,52.62]
[1741707146396,8.0904,123.64,123.53,35.50102485]
[1741707146601,8.4811,123.64,123.55,35.50102485]
[1741707146805,8.4811,123.64,123.56,52.62]
[1741707147101,0.05646838,123.61,123.58,0.05981397]
[1741707147893,0.05646838,123.61,123.59,8.093]
[1741707148095,0.05646838,123.61,123.58,0.05981397]
[1741707148307,0.05646838,123.61,123.58,35.56083882]
[1741707148498,0.05646838,123.61,123.58,0.05981397]
[1741707148699,271.0874,123.67,123.58,0.05981397]
[1741707149101,271.0874,123.67,123.56,88.26182485]
[1741707149500,271.0874,123.67,123.58,35.50102485]
[1741707149902,0.06034584,123.64,123.61,0.05736901]
[1741707150102,0.06034584,123.64,123.61,52.63736901]
[1741707150308,52.00082485,123.72,123.66,8.0888]
[1741707150607,8.4143,123.72,123.62,35.50102485]
[1741707150796,16.4993,123.72,123.65,8.0896]
[1741707151101,8.4143,123.72,123.62,35.50102485]
[1741707151503,0.05369847,123.7,123.67,0.05158688]
[1741707152102,35.55472332,123.7,123.67,0.05158688]
[1741707152307,35.50102485,123.66,123.59,191.0]
[1741707152509,4.1815,123.65,123.6,8.0924]
[1741707152808,35.50102485,123.63,123.55,2.1324]
[1741707153000,35.50102485,123.63,123.53,243.56]
[1741707153201,35.50102485,123.61,123.53,52.56]
[1741707153404,0.05301213,123.59,123.57,0.05237715]
[1741707154400,35.55403698,123.59,123.49,2.6696]
[1741707154598,0.05301213,123.59,123.49,2.6696]
[1741707154801,8.0937,123.59,123.5,52.54]
[1741707155001,35.50102485,123.6,123.51,124.0]
[1741707155207,3.963,123.64,123.51,159.50102485]
[1741707155708,0.05937588,123.59,123.56,0.05491666]
[1741707155908,0.05937588,123.59,123.58,8.0941]
[1741707156207,0.05937588,123.59,123.56,52.59961295]
[1741707156601,0.05937588,123.59,123.56,0.05961295]
[1741707157604,0.05937588,123.59,122.95,2674.36]
[1741707157605,35.50102485,123.56,123.44,35.50102485]
[1741707157801,8.0987,123.52,123.47,8.1011]
[1741707158001,35.50102485,123.54,123.46,176.52]
[1741707158404,35.50102485,123.56,123.51,8.0982]
[1741707158606,0.05279163,123.51,123.49,0.0552139]
[1741707158904,35.50102485,123.58,123.46,212.02102485]
[1741707159102,0.05913098,123.51,123.49,0.0511479]
[1741707159303,35.50102485,123.56,123.46,176.52]
[1741707159502,0.06197948,123.51,123.49,0.05533073]
[1741707159706,4.0796,123.55,123.49,0.05533073]
[1741707159903,0.05523931,123.51,123.49,0.05533073]
[1741707160906,266.94,123.59,123.49,0.05533073]
[1741707160907,262.4912219,123.71,123.49,35.55635558]
[1741707161107,8.2957,123.59,123.49,35.50102485]
[1741707161608,12.5237,123.59,123.47,88.02102485]
[1741707162007,12.5237,123.59,123.54,8.0963]
[1741707162208,0.06124694,123.58,123.47,88.02102485]
[1741707162408,12.5237,123.59,123.55,0.06242563]
[1741707162711,35.50102485,123.56,123.47,52.52]
[1741707163310,35.50102485,123.62,123.5,0.06120901]
[1741707163509,4.2318,123.61,123.51,35.50102485]
[1741707163704,4.2318,123.61,123.52,52.5]
[1741707163904,56.7318,123.61,123.52,52.5]
[1741707164613,0.05314242,123.58,123.55,0.05236125]
[1741707165210,0.05314242,123.58,123.57,8.0948]
[1741707166113,0.05314242,123.58,123.56,8.0953]
[1741707166314,0.05314242,123.58,123.55,0.05236125]
[1741707167018,0.05314242,123.58,123.52,8.0977]
[1741707167312,267.04,123.59,123.5,52.48]
[1741707167516,8.0948,123.57,123.5,52.48]
[1741707167711,8.1286,123.56,123.5,52.48]
[1741707167915,8.1286,123.56,123.46,124.0]
[1741707168116,35.55921865,123.54,123.43,52.46]
[1741707168418,35.50102485,123.54,123.42,238.71601337]
[1741707168609,35.50102485,123.54,123.43,176.46]
[1741707168814,52.46,123.55,123.44,35.50102485]
[1741707169308,0.05901353,123.51,123.5,8.099]
[1741707169513,8.1286,123.56,123.48,176.46]
[1741707169714,8.1286,123.56,123.52,8.0976]
[1741707169915,0.06162234,123.53,123.48,176.46]
[1741707170420,52.46,123.64,123.5,35.50102485]
[1741707170615,96.36392485,123.64,123.51,35.94252485]
[1741707170817,96.36392485,123.64,123.49,0.1917]
[1741707170818,35.50102485,123.61,123.49,0.1917]
[1741707171221,35.50102485,123.63,123.5,35.50102485]
[1741707171420,35.50102485,123.61,123.52,8.0978]
[1741707171617,0.0565283,123.58,123.55,0.05391354]
[1741707171813,0.0565283,123.58,123.56,8.0954]
[1741707172015,0.0565283,123.58,123.55,0.05391354]
[1741707172522,0.0565283,123.58,123.56,8.0954]
[1741707172722,0.0565283,123.58,123.55,0.05391354]
[1741707172919,0.0565283,123.58,123.57,8.0948]
[1741707173424,8.4029,123.64,123.56,35.50102485]
[1741707173627,8.4029,123.64,123.58,35.50102485]
[1741707173819,8.4029,123.64,123.58,87.92102485]
[1741707174127,302.54102485,123.72,123.6,35.50102485]
[1741707174318,8.0484,123.69,123.6,35.50102485]
[1741707174622,0.05127042,123.66,123.63,0.05779043]
[1741707176020,0.05127042,123.66,122.67,671.53192431]
[1741707176021,87.95229527,123.66,123.55,52.4]
[1741707176219,4.1106,123.65,123.55,52.4]
[1741707176522,302.54102485,123.64,123.55,52.4]
[1741707176820,35.50102485,123.62,123.52,87.90102485]
[1741707177022,8.0927,123.61,123.56,8.0953]
[1741707177215,0.06205583,123.61,123.58,0.06006223]
[1741707177419,12.4527,123.63,123.58,8.0937]
[1741707177616,0.06189477,123.61,123.58,0.05697516]
[1741707178428,8.15469477,123.61,123.58,0.05697516]
[1741707178828,0.06189477,123.61,123.58,0.05697516]
[1741707180022,4.1106,123.65,123.59,35.50102485]
[1741707180221,4.1106,123.65,123.62,8.091]
[1741707180427,4.1106,123.65,123.57,87.86102485]
[1741707180626,4.1106,123.65,123.57,52.36]
[1741707180828,8.0905,123.64,123.59,8.093]
[1741707181028,4.1106,123.65,123.57,52.36]
[1741707181229,4.1106,123.65,123.59,35.50102485]
[1741707181424,0.06190317,123.63,123.6,0.06176447]
[1741707181629,0.06190317,123.63,123.53,87.86102485]
[1741707181829,0.06190317,123.63,123.55,8.0955]
[1741707181830,8.0928,123.6,123.55,8.0955]
[1741707182030,4.1318,123.62,123.53,87.86102485]
[1741707182228,4.1318,123.62,123.59,8.093]
[1741707182428,271.1106,123.65,123.58,52.34]
[1741707182629,0.05315425,123.63,123.58,87.84102485]
[1741707182832,0.05315425,123.63,123.6,0.05939259]
[1741707183333,0.05315425,123.63,123.62,8.0915]
[1741707183629,4.2003,123.7,123.62,35.50102485]
[1741707183825,4.2003,123.7,123.65,8.0895]
[1741707184022,4.2003,123.7,123.63,52.34]
[1741707184734,4.2003,123.7,123.65,0.0534306]
[1741707184932,0.06084224,123.68,123.65,0.0534306]
[1741707185342,16.77,123.74,123.69,8.0868]
[1741707185543,8.686,123.74,123.69,8.0868]
[1741707185732,8.686,123.74,123.63,87.84102485]
[1741707186134,255.85607462,123.83,123.72,35.50102485]
[1741707186344,8.686,123.82,123.73,52.32]
[1741707186543,0.05560002,123.79,123.76,0.06199367]
[1741707188239,8.0811,123.78,123.76,0.06199367]
[1741707188547,0.05560002,123.79,123.76,0.06199367]
[1741707189635,0.05560002,123.79,123.7,52.28]
[1741707189842,35.50102485,123.76,123.67,243.28]
[1741707190148,35.50102485,123.74,123.64,53.87759948]
[1741707190346,3.9706,123.75,123.64,89.37862433]
[1741707190547,3.9706,123.75,123.66,35.50102485]
[1741707190843,0.0553149,123.71,123.68,0.05291527]
[1741707192044,35.50102485,123.82,123.7,8.0863]
[1741707192347,4.0921,123.8,123.71,87.74102485]
[1741707192643,39.59312485,123.8,123.72,52.24]
[1741707192948,35.50102485,123.78,123.68,52.24]
[1741707193145,91.83312485,123.8,123.68,52.24]
[1741707193349,0.05204884,123.74,123.72,0.06148339]
[1741707193746,4.0921,123.8,123.68,52.24]
[1741707193948,0.06137183,123.74,123.72,0.05563906]
[1741707194149,8.0824,123.76,123.71,43.58622485]
[1741707194341,0.05585059,123.74,123.72,0.05499725]
[1741707194547,35.50102485,123.79,123.68,52.24]
[1741707194743,0.05998363,123.74,123.72,0.05447613]
[1741707195041,4.056,123.79,123.73,52.22]
[1741707195246,12.1369,123.79,123.73,52.22]
[1741707195445,4.0921,123.8,123.73,52.22]
[1741707195945,4.0921,123.8,123.74,35.50102485]
[1741707196142,35.50102485,123.9,123.74,35.50102485]
[1741707196346,12.4556,123.89,123.77,35.50102485]
[1741707196546,12.4556,123.89,123.8,35.50102485]
[1741707196848,11.15550429,123.97,123.82,35.50102485]
[1741707197149,11.15550429,123.97,123.91,35.50102485]
[1741707197348,11.15550429,123.97,123.92,52.18]
[1741707197545,11.15550429,123.97,123.95,35.50102485]
[1741707197747,9.81320473,123.97,123.95,35.50102485]
[1741707197944,6.91160473,123.97,123.95,37.92102485]
[1741707198143,133.86605149,124.0,123.95,37.92102485]
[1741707198346,44.49509052,124.04,123.97,35.50102485]
[1741707198643,220.35504977,124.07,124.03,35.50102485]
[1741707198845,220.35504977,124.07,124.04,87.68102485]
[1741707199043,220.35504977,124.07,124.02,35.50102485]
[1741707199344,220.35504977,124.07,124.04,0.05109879]
[1741707199751,8.0636,124.05,123.98,52.14]
[1741707199940,255.85607462,124.07,123.96,35.50102485]
[1741707200344,35.50102485,124.07,123.96,35.50102485]
[1741707200548,270.7236,124.09,123.96,35.50102485]
[1741707200739,270.7236,124.09,123.99,35.50102485]
[1741707200943,0.05177417,124.04,124.01,0.05154704]
[1741707201340,0.05177417,124.04,124.0,87.64102485]
[1741707201545,0.05177417,124.04,124.01,0.0510836]
[1741707202347,8.0578,124.14,124.04,8.0641]
[1741707202549,266.48,124.15,124.04,52.1]
[1741707202746,301.98102485,124.15,124.04,52.1]
[1741707203145,35.50102485,124.12,124.0,318.56]
[1741707203342,52.08,124.11,124.0,52.08]
[1741707203548,52.08,124.11,124.05,0.05950608]
[1741707203750,4.2482,124.1,124.0,52.08]
[1741707204052,4.2482,124.1,124.04,8.0639]
[1741707204252,52.08,124.18,124.05,87.58102485]
[1741707204452,8.0595,124.12,124.05,87.58102485]
[1741707204644,52.08,124.13,124.02,353.92102485]
[1741707204849,4.1288,124.11,124.0,191.0]
[1741707205147,8.0621,124.08,124.07,0.05909164]
[1741707205352,52.04,124.08,123.99,52.08]
[1741707205550,52.04,124.08,123.96,301.84102485]
[1741707205852,52.04,124.08,123.92,393.18470698]
[1741707205853,35.50102485,124.06,123.94,52.04]
[1741707206055,35.50102485,124.03,123.91,52.04]
[1741707206242,4.13,124.02,123.91,52.04]
[1741707206441,0.05122735,123.98,123.96,0.05161577]
[1741707206647,0.05122735,123.98,123.91,52.04]
[1741707207047,0.05122735,123.98,123.92,35.50102485]
[1741707207247,0.05122735,123.98,123.95,8.0695]
[1741707207451,0.05122735,123.98,123.95,35.50102485]
[1741707207752,0.05122735,123.98,123.91,52.04]
[1741707208056,0.05122735,123.98,123.95,0.05456802]
[1741707209142,0.05122735,123.98,123.96,52.02]
[1741707209344,4.13,124.02,123.96,52.02]
[1741707209748,4.0201,124.04,123.96,87.52102485]
[1741707210148,8.0659,124.02,123.96,87.52102485]
[1741707210354,4.2807,124.06,123.96,87.52102485]
[1741707210555,0.06210364,124.0,123.98,0.05873015]
[1741707211053,0.05415955,124.0,123.98,0.06038366]
[1741707211653,266.26,124.18,123.99,35.50102485]
[1741707211851,4.3401,124.12,124.02,35.50102485]
[1741707212154,0.3413,124.07,124.03,51.98]
[1741707212952,0.05877275,124.06,124.04,0.05748077]
[1741707214152,0.3413,124.07,124.04,0.05748077]
[1741707214451,39.48902485,124.17,124.04,0.05748077]
[1741707214754,4.3401,124.15,124.07,8.062]
[1741707214955,4.3401,124.15,124.05,35.50102485]
[1741707215255,4.3401,124.15,124.03,51.96]
[1741707215256,35.50102485,124.14,124.03,51.94]
[1741707215555,35.50102485,124.14,124.09,0.05903936]
[1741707216258,51.94,124.13,124.03,51.94]
[1741707216453,51.94,124.13,124.01,35.50102485]
[1741707216759,35.50102485,124.11,124.0,1.61290322]
[1741707217055,35.50102485,124.08,124.0,1.61290322]
[1741707217255,3.988,124.1,124.0,1.61290322]
[1741707217458,0.0532922,124.05,124.03,0.05264398]
[1741707217655,3.988,124.1,124.03,0.05264398]
[1741707217957,8.12252459,124.05,124.03,0.05264398]
[1741707218261,35.50102485,124.08,124.03,0.05264398]
[1741707218555,0.05974519,124.05,124.03,0.05264398]
[1741707218753,8.12354519,124.05,124.03,0.05264398]
[1741707218953,0.05974519,124.05,124.03,0.05264398]
[1741707219152,0.05974519,124.05,124.0,1.61290322]
[1741707219352,35.56077004,124.05,124.0,1.61290322]
[1741707219545,4.0516,124.04,124.0,1.61290322]
[1741707219951,87.40102485,124.03,123.94,51.9]
[1741707220155,87.40102485,124.03,123.92,3.6656]
[1741707220457,0.05626093,124.0,123.97,0.06036196]
[1741707220955,0.05626093,124.0,123.99,8.0674]
[1741707221153,0.05626093,124.0,123.97,0.06036196]
[1741707221353,0.05626093,124.0,123.98,8.0675]
[1741707221550,0.05626093,124.0,123.97,0.06036196]
[1741707222452,0.05626093,124.0,123.97,8.12876196]
[1741707222957,0.05626093,124.0,123.98,8.0677]
[1741707223554,0.05626093,124.0,123.99,8.0674]
[1741707223948,39.17327738,124.07,123.99,8.0674]
[1741707224149,39.17327738,124.07,124.0,8.0663]
[1741707224353,4.2092,124.06,124.0,8.0663]
[1741707224550,4.2092,124.06,123.96,51.9]
[1741707224754,35.50102485,124.08,123.97,35.50102485]
[1741707225155,0.06041747,124.04,124.01,0.05664692]
[1741707225556,35.50102485,124.08,124.01,8.12264692]
[1741707225759,35.50102485,124.09,124.01,0.05664692]
[1741707226356,8.0638,124.05,124.01,8.0659]
[1741707226559,4.2092,124.11,124.01,51.86]
[1741707226951,4.2092,124.11,124.02,0.06128774]
[1741707227154,35.50102485,124.1,124.01,51.86]
[1741707227354,87.34102485,124.1,124.05,0.05736271]
[1741707227860,8.0628,124.06,124.05,0.05736271]
[1741707228162,35.50102485,124.07,123.95,51.84]
[1741707228359,35.50102485,124.04,123.95,51.84]
[1741707228559,4.3582,124.03,123.95,51.84]
[1741707228859,8.0667,124.01,123.97,8.0684]
[1741707229060,4.3582,124.03,123.95,51.84]
[1741707229262,0.05564573,124.0,123.98,0.05942275]
[1741707229460,8.0674,123.99,123.98,0.05942275]
[1741707230659,8.12264573,124.0,123.98,0.05942275]
[1741707230859,0.05564573,124.0,123.98,0.05942275]
[1741707232660,0.05564573,124.0,123.91,53.72706323]
[1741707232958,51.8,124.01,123.91,53.72706323]
[1741707233265,35.50102485,123.99,123.97,64.25335476]
[1741707233559,35.50102485,123.99,123.95,85.94794642]
[1741707233960,35.55723148,123.99,123.95,42.51845162]
[1741707234155,37.97723148,123.99,123.95,39.68975162]
[1741707234560,51.8,123.98,123.95,39.68975162]
[1741707234758,35.50102485,123.96,123.95,10.76675162]
[1741707235064,43.57032485,123.96,123.95,5.162e-05]
[1741707235261,45.99032485,123.96,123.95,5.162e-05]
[1741707235663,43.57032485,123.96,123.95,5.162e-05]
[1741707235862,45.99032485,123.96,123.95,5.162e-05]
[1741707236066,73.4220497,123.96,123.93,321.87604549]
[1741707237266,35.50102485,123.93,123.86,4.1488]
[1741707237464,87.28102485,123.93,123.92,9.741e-05]
[1741707237667,87.28102485,123.93,123.86,4.1488]
[1741707237967,87.28102485,123.93,123.84,51.78]
[1741707238161,87.28102485,123.93,123.82,4.2579]
[1741707238362,219.10532673,123.87,123.82,4.2579]
[1741707238659,0.0621978,123.86,123.78,301.66102485]
[1741707238865,0.0621978,123.86,123.83,0.0587787]
[1741707239063,254.60635158,123.87,123.83,0.0587787]
[1741707239268,8.0767,123.85,123.83,0.0587787]
[1741707239467,0.05928777,123.86,123.83,0.0587787]
[1741707239667,8.13538777,123.86,123.83,0.0587787]
[1741707239867,0.05928777,123.86,123.84,8.0769]
[1741707240168,8.0771,123.84,123.83,0.0587787]
[1741707240468,8.0771,123.84,123.83,7.87e-05]
[1741707240665,35.78146829,123.84,123.77,8.4031]
[1741707240868,33.36146829,123.84,123.77,8.4031]
[1741707241464,35.50102485,123.82,123.75,8.0828]
[1741707241668,35.50102485,123.82,123.74,4.3563]
[1741707241867,0.05808762,123.8,123.77,0.06212604]
[1741707242061,35.50102485,123.79,123.77,2.604e-05]
[1741707242263,0.05808762,123.8,123.77,2.604e-05]
[1741707243264,51.78,123.79,123.77,2.604e-05]
[1741707243580,51.78,123.79,123.62,51.76]
[1741707243581,35.50102485,123.78,123.62,51.76]
[1741707243863,35.50102485,123.74,123.63,4.2713]
[1741707244077,87.28102485,123.74,123.63,4.2713]
[1741707244474,266.42,123.73,123.58,1.40657209]
[1741707244663,0.05559619,123.7,123.67,0.05776246]
[1741707244970,35.50102485,123.71,123.6,35.50102485]
[1741707245177,0.05272073,123.7,123.59,12.5932]
[1741707245365,51.78,123.69,123.64,0.06102433]
[1741707245668,0.05715015,123.66,123.6,35.50102485]
[1741707245869,0.05715015,123.66,123.65,0.05984094]
[1741707246167,51.78,123.78,123.63,35.50102485]
[1741707246473,51.78,123.78,123.65,35.50102485]
[1741707246664,8.0842,123.74,123.69,8.0865]
[1741707246869,35.50102485,123.76,123.66,4.2347]
[1741707247070,35.50102485,123.76,123.67,51.8]
[1741707247274,0.05440792,123.72,123.7,0.05434208]
[1741707247465,51.76,123.77,123.7,0.05434208]
[1741707247768,68.6413703,123.79,123.7,0.05434208]
[1741707248170,35.50102485,123.76,123.67,60.0128]
[1741707248669,0.05521858,123.73,123.7,0.06186782]
[1741707248868,0.05521858,123.73,123.72,8.0846]
[1741707249168,266.54,123.8,123.71,35.50102485]
[1741707249372,35.50102485,123.79,123.7,0.06186782]
[1741707249565,51.78,123.82,123.68,35.50102485]
[1741707250388,0.05857026,123.76,123.74,0.06127616]
[1741707250560,51.78,123.82,123.71,35.50102485]
[1741707250757,0.06057006,123.75,123.74,0.05474262]
[1741707250956,35.50102485,123.81,123.67,60.0128]
[1741707250957,51.78,123.82,123.69,35.50102485]
[1741707251158,0.05111027,123.76,123.73,0.05715912]
[1741707251362,51.78,123.82,123.69,35.50102485]
[1741707251563,0.05450735,123.76,123.73,0.06015143]
[1741707251763,35.50102485,123.81,123.69,35.50102485]
[1741707251964,0.05636127,123.76,123.73,0.06176703]
[1741707252169,0.05636127,123.76,123.69,35.50102485]
[1741707252361,353.88102485,123.84,123.73,0.05145455]
[1741707252673,353.88102485,123.84,123.73,51.76]
[1741707253169,8.081,123.79,123.7,87.26102485]
[1741707253662,0.05153118,123.76,123.73,0.05512749]
[1741707253972,35.50102485,123.81,123.7,51.76]
[1741707254176,0.0510351,123.76,123.73,0.05407413]
[1741707254372,8.1340351,123.76,123.73,0.05407413]
[1741707254676,0.0510351,123.76,123.73,0.05594848]
[1741707254880,8.0836,123.75,123.73,0.05594848]
[1741707255068,0.0510351,123.76,123.73,0.05594848]
[1741707255470,0.0510351,123.76,123.74,8.0834]
[1741707255668,0.0510351,123.76,123.73,0.05594848]
[1741707256466,8.0837,123.74,123.73,0.05594848]
[1741707256879,8.0837,123.74,123.73,4.848e-05]
[1741707257378,0.0510351,123.76,123.73,4.848e-05]
[1741707258173,35.50102485,123.75,123.73,4.848e-05]
[1741707258374,0.0510351,123.76,123.73,4.848e-05]
[1741707258583,0.0510351,123.76,123.68,4.1105]
[1741707258781,35.50102485,123.73,123.67,8.2128]
[1741707259079,87.22102485,123.73,123.63,4.1407]
[1741707259281,87.22102485,123.73,123.63,12.6557]
[1741707259778,35.50102485,123.71,123.63,12.6557]
[1741707259983,8.0891,123.66,123.63,8.515]
[1741707260174,35.50102485,123.71,123.63,8.515]
[1741707260370,35.50102485,123.71,123.6,4.0789]
[1741707260576,0.05340265,123.66,123.63,0.05449977]
[1741707260795,0.05340265,123.66,123.64,8.0899]
[1741707260977,8.0904,123.64,123.63,0.05583423]
[1741707261973,0.05400962,123.65,123.63,0.05583423]
[1741707262685,8.0902,123.64,123.63,0.05583423]
[1741707262873,0.05400962,123.65,123.63,0.05583423]
[1741707263077,8.0902,123.64,123.63,0.05583423]
[1741707263908,8.0912,123.63,123.54,226.50102485]
[1741707264085,0.05400962,123.65,123.55,99.95442485]
[1741707264282,353.96102485,123.68,123.55,99.95442485]
[1741707264485,8.0916,123.62,123.55,99.95442485]
[1741707264783,353.96102485,123.68,123.55,99.95442485]
[1741707265183,0.05496862,123.63,123.6,0.06083319]
[1741707265683,0.05496862,123.63,123.6,0.05869368]
[1741707266084,8.0919,123.62,123.6,0.05869368]
[1741707266279,0.05496862,123.63,123.6,0.05869368]
[1741707268085,8.0919,123.62,123.6,0.05869368]
[1741707268287,0.05496862,123.63,123.6,0.05869368]
[1741707268687,8.14606862,123.63,123.6,8.15149368]
[1741707268990,0.05496862,123.63,123.6,0.05869368]
[1741707269984,346.48785803,123.74,123.61,35.50102485]
[1741707270181,51.7,123.73,123.62,8.2296]
[1741707270381,10.94648773,123.71,123.62,8.2296]
[1741707270783,10.94648773,123.71,123.69,8.0869]
[1741707270979,10.94648773,123.71,123.66,35.50102485]
[1741707271182,10.94648773,123.71,123.63,51.68]
[1741707271183,33.14034545,123.72,123.69,0.05155996]
[1741707271386,33.14034545,123.72,123.69,4.30595996]
[1741707271691,33.14034545,123.72,123.64,35.50102485]
[1741707271889,33.14034545,123.72,123.64,39.75542485]
[1741707272382,0.06065026,123.69,123.67,0.06175349]
[1741707274292,0.06065026,123.69,123.68,8.0876]
[1741707274685,0.06065026,123.69,123.67,0.06175349]
[1741707274887,8.14805026,123.69,123.67,0.06175349]
[1741707275195,0.06065026,123.69,123.67,0.06175349]
[1741707275489,41.10864545,123.77,123.67,0.06175349]
[1741707275692,33.14034545,123.74,123.68,87.14102485]
[1741707275893,33.14034545,123.74,123.7,8.086]
[1741707276189,33.14034545,123.74,123.68,51.64]
[1741707276586,33.14034545,123.74,123.7,8.0862]
[1741707276791,0.05790763,123.72,123.7,0.05136974]
[1741707277192,33.14034545,123.74,123.7,0.05136974]
[1741707278194,8.0838,123.74,123.71,8.0852]
[1741707278387,0.05894661,123.73,123.7,0.05136974]
[1741707279187,51.62,123.79,123.73,8.084]
[1741707279391,266.9,123.8,123.69,35.50102485]
[1741707279790,8.0832,123.75,123.69,35.50102485]
[1741707279991,302.40102485,123.8,123.69,35.50102485]
[1741707280191,302.40102485,123.8,123.71,8.0853]
[1741707280409,8.0835,123.75,123.73,0.05401444]
[1741707280692,302.40102485,123.8,123.73,0.05401444]
[1741707281500,51.6,123.79,123.73,0.05401444]
[1741707282091,8.0837,123.74,123.73,0.05401444]
[1741707282296,51.6,123.79,123.73,0.05401444]
[1741707282795,8.2215,123.84,123.73,51.63401444]
[1741707283091,43.72252485,123.84,123.73,51.58]
[1741707283292,43.72252485,123.84,123.77,0.05713759]
[1741707283498,95.30252485,123.84,123.77,0.05713759]
[1741707283697,95.30252485,123.84,123.79,8.0801]
[1741707283698,8.0788,123.82,123.79,8.0801]
[1741707283892,39.77092485,123.84,123.77,0.05713759]
[1741707284093,4.2699,123.84,123.74,8.2359]
[1741707284291,4.2699,123.84,123.79,0.05548381]
[1741707284689,8.0773,123.84,123.79,0.05548381]
[1741707284994,4.1339,123.88,123.79,0.05548381]
[1741707285297,4.1339,123.88,123.79,35.50102485]